bitfinex-derivatives/quotes_SOLF0:USTF0_20250603
["timestamp","ask_amount","ask_price","bid_price","bid_amount"]
[1748964864786,0.04316276,162.03,162.0,0.04356199]
[1748964865089,0.04316276,162.03,162.02,6.1672]
[1748964866091,0.04316276,162.03,162.0,0.04356199]
[1748964866685,0.04316276,162.03,162.02,6.1672]
[1748964867291,532.92,162.17,162.01,15.877703]
[1748964867490,15.877703,162.11,162.01,15.877703]
[1748964867687,15.877703,162.11,162.02,2.1113]
[1748964868286,0.04135367,162.08,162.07,6.1653]
[1748964872791,0.04135367,162.08,162.05,6.20884053]
[1748964872992,0.04135367,162.08,162.05,0.04314053]
[1748964873386,0.04135367,162.08,162.07,6.1653]
[1748964873802,0.04135367,162.08,162.05,0.04314053]
[1748964874095,0.04135367,162.08,162.06,6.1657]
[1748964874491,0.04135367,162.08,162.05,0.04314053]
[1748964874693,6.20635367,162.08,162.05,0.04314053]
[1748964874895,0.04135367,162.08,162.05,0.04314053]
[1748964875791,0.04135367,162.08,162.05,6.20894053]
[1748964875987,0.04135367,162.08,162.05,0.04314053]
[1748964876190,37.06135367,162.08,162.05,0.04314053]
[1748964876499,15.877703,162.06,162.05,0.04314053]
[1748964876800,22.043403,162.06,162.05,0.04314053]
[1748964877102,6.1667,162.04,162.0,6.1677]
[1748964877296,15.877703,162.04,162.0,6.1677]
[1748964877497,15.877703,162.04,161.98,2.0539]
[1748964877699,2.1314,162.07,162.05,6.1658]
[1748964877890,2.1314,162.07,162.04,0.04220569]
[1748964878092,2.17301457,162.07,162.04,0.04220569]
[1748964878600,18.05071757,162.07,162.04,0.04220569]
[1748964878998,24.21621757,162.07,162.04,6.20850569]
[1748964879403,15.91931757,162.07,162.04,0.04220569]
[1748964879998,0.04161457,162.07,162.04,0.04220569]
[1748964880400,0.04161457,162.07,162.04,6.20850569]
[1748964880799,6.20701457,162.07,162.04,6.20850569]
[1748964881502,0.04161457,162.07,162.05,6.166]
[1748964881805,0.04161457,162.07,162.04,0.04220569]
[1748964882005,6.166,162.06,162.04,0.04220569]
[1748964882302,15.877703,162.06,162.04,0.04220569]
[1748964882513,15.877703,162.06,161.97,7.80632361]
[1748964882803,15.877703,162.01,161.97,2.1077]
[1748964883103,6.1682,162.0,161.97,6.1688]
[1748964883309,6.1682,162.0,161.94,4.57177415]
[1748964883501,15.877703,161.99,161.97,0.0447514]
[1748964883705,6.1687,161.98,161.97,0.0447514]
[1748964884100,15.877703,161.99,161.97,0.0447514]
[1748964884301,22.046403,161.99,161.97,0.0447514]
[1748964884501,0.04640591,162.0,161.97,0.0447514]
[1748964884698,15.877703,161.99,161.97,0.0447514]
[1748964885309,0.04640591,162.0,161.97,0.0447514]
[1748964885607,22.09230891,162.0,161.97,0.0447514]
[1748964885812,0.04640591,162.0,161.97,0.0447514]
[1748964886705,0.04640591,162.0,161.98,6.1685]
[1748964886906,0.04640591,162.0,161.97,0.0447514]
[1748964887111,0.04640591,162.0,161.99,6.1684]
[1748964897116,0.04640591,162.0,161.98,6.1688]
[1748964897524,0.04640591,162.0,161.97,0.0447514]
[1748964898936,0.04640591,162.0,161.99,6.1685]
[1748964899232,0.04640591,162.0,161.97,0.0447514]
[1748964899726,0.04640591,162.0,161.99,6.1685]
[1748964901432,0.04640591,162.0,161.98,6.1687]
[1748964901730,0.04640591,162.0,161.97,0.0447514]
[1748964902030,0.04640591,162.0,161.99,6.1685]
[1748964902235,0.04640591,162.0,161.97,0.0447514]
[1748964902833,0.04640591,162.0,161.99,6.1685]
[1748964906533,36.92,162.04,162.03,6.167]
[1748964907418,542.43900836,162.07,162.06,6.1659]
[1748964907625,36.96480494,162.08,162.02,9.60356299]
[1748964907826,36.96480494,162.08,162.07,6.1655]
[1748964908021,0.04480494,162.08,162.07,6.1655]
[1748964909837,36.92,162.12,162.09,6.1646]
[1748964910036,15.91104482,162.11,162.06,0.04416874]
[1748964910831,0.04050891,162.1,162.07,6.1654]
[1748964911131,0.04050891,162.1,162.06,0.04416874]
[1748964912536,0.04050891,162.1,162.06,2.20566874]
[1748964912737,0.04050891,162.1,162.09,6.1647]
[1748964913042,0.04050891,162.1,162.06,2.20566874]
[1748964913331,0.04050891,162.1,162.09,6.1647]
[1748964913536,533.04,162.15,162.07,15.91104482]
[1748964913736,36.12,162.16,162.13,6.1629]
[1748964913927,36.12,162.16,162.07,15.91104482]
[1748964914538,0.04069654,162.13,162.1,0.04602818]
[1748964914837,0.04069654,162.13,162.12,6.1636]
[1748964915630,36.12,162.16,162.14,6.1625]
[1748964915831,36.12,162.16,162.11,2.1072]
[1748964916034,36.12,162.16,162.11,18.01824482]
[1748964916230,36.1,162.21,162.13,15.91104482]
[1748964916435,18.4587,162.41,162.13,52.01104482]
[1748964916436,12.3087,162.37,162.13,52.01104482]
[1748964916637,15.91104482,162.24,162.18,0.04651886]
[1748964916832,36.1,162.25,162.19,0.04661256]
[1748964917040,0.04278838,162.23,162.19,0.04661256]
[1748964917836,15.9538332,162.23,162.19,0.04661256]
[1748964918233,22.1133332,162.23,162.19,0.04661256]
[1748964918433,15.91104482,162.21,162.19,0.04661256]
[1748964918640,52.01104482,162.21,162.19,0.04661256]
[1748964918842,6.1619,162.17,162.11,2.1072]
[1748964919143,15.91104482,162.15,162.11,2.1072]
[1748964919344,52.01104482,162.17,162.11,2.1072]
[1748964919946,0.04240414,162.16,162.15,6.1625]
[1748964920343,6.2157,162.22,162.14,15.91104482]
[1748964920344,36.1,162.21,162.14,15.91104482]
[1748964921240,0.04467583,162.19,162.16,0.04429353]
[1748964921843,0.04467583,162.19,162.18,6.1613]
[1748964922034,7.583e-05,162.19,162.18,6.1613]
[1748964924950,7.583e-05,162.19,162.18,8.2768]
[1748964926038,7.583e-05,162.19,162.18,6.1613]
[1748964926749,7.583e-05,162.19,162.17,6.1614]
[1748964926950,7.583e-05,162.19,162.16,0.04429353]
[1748964926951,15.91112065,162.19,162.16,0.04429353]
[1748964927851,15.91112065,162.19,162.18,6.1613]
[1748964930651,15.91112065,162.19,162.16,0.04429353]
[1748964930854,15.91104482,162.17,162.07,42.4797]
[1748964931052,15.91104482,162.16,162.07,58.39074482]
[1748964931749,15.91104482,162.16,162.13,6.163]
[1748964931950,15.95050485,162.16,162.13,0.03949113]
[1748964932252,15.95050485,162.16,162.14,6.1626]
[1748964932655,15.95050485,162.16,162.13,6.20259113]
[1748964933648,6.1627,162.15,162.13,0.03949113]
[1748964934554,15.95050485,162.16,162.13,0.03949113]
[1748964935451,15.95050485,162.16,162.13,6.20249113]
[1748964935648,0.03946003,162.16,162.13,6.20249113]
[1748964935851,6.20166003,162.16,162.13,6.20259113]
[1748964936152,15.91104482,162.15,162.13,0.03949113]
[1748964936356,6.1628,162.14,162.13,0.03949113]
[1748964936657,15.91104482,162.15,162.13,0.03949113]
[1748964936857,0.03946003,162.16,162.15,6.1625]
[1748964938555,36.08,162.23,162.15,15.91104482]
[1748964939055,42.2397,162.23,162.15,15.91104482]
[1748964939463,0.0391345,162.21,162.17,15.95105042]
[1748964939664,0.0391345,162.21,162.17,0.04432157]
[1748964939958,0.0391345,162.21,162.2,6.1606]
[1748964941351,3.45e-05,162.21,162.2,6.1606]
[1748964945666,532.58,162.3,162.19,41.62111302]
[1748964945859,15.91104482,162.29,162.19,51.85104482]
[1748964946166,22.06844482,162.29,162.19,51.85104482]
[1748964946357,22.06844482,162.29,162.24,6.1587]
[1748964946558,0.04011824,162.28,162.25,0.04146918]
[1748964946754,0.04011824,162.28,162.25,6.19976918]
[1748964946959,0.04011824,162.28,162.25,0.04146918]
[1748964947466,0.04011824,162.28,162.25,6.19996918]
[1748964947859,0.04011824,162.28,162.26,6.1582]
[1748964948054,0.04011824,162.28,162.25,0.04146918]
[1748964948467,15.91104482,162.26,162.25,0.04146918]
[1748964948660,15.91104482,162.26,162.25,0.00894941]
[1748964948861,6.1592,162.24,162.21,6.1599]
[1748964949064,15.91104482,162.22,162.19,35.94]
[1748964949259,15.91104482,162.22,162.16,7.72817034]
[1748964949471,2.70751458,162.21,162.2,6.1606]
[1748964949668,15.91104482,162.23,162.16,2.028]
[1748964949967,0.04386758,162.21,162.18,0.04484841]
[1748964950163,2.71349274,162.2,162.18,0.04484841]
[1748964950360,0.04386758,162.21,162.18,0.04484841]
[1748964950762,2.71353522,162.2,162.18,0.04484841]
[1748964950960,0.04386758,162.21,162.18,0.04484841]
[1748964951467,0.04386758,162.21,162.2,6.1606]
[1748964951660,6.758e-05,162.21,162.2,6.1606]
[1748964951869,35.94,162.31,162.28,6.1573]
[1748964952069,35.94,162.31,162.2,7.84577034]
[1748964952368,35.94,162.31,162.2,2.1456]
[1748964952565,35.94,162.31,162.19,41.64017034]
[1748964952566,35.94,162.31,162.18,5.69730257]
[1748964952758,35.94,162.31,162.15,7.52987098]
[1748964952759,15.91104482,162.21,162.14,2.0017]
[1748964952964,0.04086633,162.19,162.17,6.1617]
[1748964953164,0.04631384,162.2,162.16,0.04294445]
[1748964953564,15.91104482,162.19,162.16,6.20494445]
[1748964953867,15.91104482,162.19,162.16,0.04294445]
[1748964954060,15.91104482,162.19,162.17,6.1614]
[1748964955566,15.91104482,162.19,162.16,0.04294445]
[1748964955966,15.91104482,162.17,162.16,0.04294445]
[1748964956973,15.91104482,162.18,162.16,0.04294445]
[1748964957570,15.91104482,162.18,162.17,6.1617]
[1748964957772,0.04631384,162.2,162.16,0.04294445]
[1748964958069,0.04631384,162.2,162.19,6.1609]
[1748964958471,15.95735866,162.2,162.16,0.04294445]
[1748964959167,15.95735866,162.2,162.16,6.20464445]
[1748964959467,0.04631384,162.2,162.16,0.04294445]
[1748964959669,0.04631384,162.2,162.16,2.07034445]
[1748964959861,0.04631384,162.2,162.18,6.161]
[1748964960067,0.04631384,162.2,162.16,2.07034445]
[1748964960265,0.04631384,162.2,162.19,6.1609]
[1748964960474,15.95735866,162.2,162.16,0.04294445]
[1748964960769,15.91104482,162.17,162.09,6.2895]
[1748964960970,15.91104482,162.17,162.09,2.0942]
[1748964961171,15.91104482,162.15,162.09,2.0942]
[1748964961369,15.91104482,162.13,162.04,61.07654482]
[1748964961566,15.91104482,162.13,162.04,63.17074482]
[1748964961769,40.96,162.16,162.04,63.17074482]
[1748964961770,0.04688616,162.1,162.09,6.1645]
[1748964961970,0.04368859,162.11,162.08,15.95097558]
[1748964962565,0.04368859,162.11,162.1,6.1644]
[1748964964176,2.8536711,162.11,162.1,6.1644]
[1748964964374,40.96,162.16,162.1,15.91104482]
[1748964964677,2.1492,162.19,162.12,15.91104482]
[1748964964975,2.1492,162.19,162.15,6.1624]
[1748964965171,18.06024482,162.19,162.09,56.87104482]
[1748964965474,0.04124842,162.16,162.12,0.04124014]
[1748964965675,0.04124842,162.16,162.13,6.1629]
[1748964965873,0.04124842,162.16,162.12,0.04124014]
[1748964966278,0.04124842,162.16,162.15,6.1625]
[1748964966479,0.04124842,162.16,162.12,0.04124014]
[1748964967277,0.04124842,162.16,162.14,6.1625]
[1748964967674,0.04124842,162.16,162.12,0.04124014]
[1748964969082,0.04124842,162.16,162.15,6.1625]
[1748964973277,4.842e-05,162.16,162.15,22.07354482]
[1748964973479,43.0587,162.24,162.21,6.16]
[1748964973679,58.96974482,162.24,162.14,40.96]
[1748964974283,15.91104482,162.22,162.17,6.1617]
[1748964974480,0.04735982,162.21,162.18,0.04326837]
[1748964974882,0.04735982,162.21,162.18,6.20456837]
[1748964975083,6.20775982,162.21,162.18,6.20456837]
[1748964975385,4.98774066,162.21,162.19,6.1608]
[1748964975788,4.98774066,162.21,162.18,0.04326837]
[1748964976090,4.98774066,162.21,162.2,6.1606]
[1748964976291,0.04735982,162.21,162.18,0.04326837]
[1748964976479,3.00149032,162.2,162.18,0.04326837]
[1748964976682,0.04735982,162.21,162.18,0.04326837]
[1748964977585,0.04735982,162.21,162.2,6.1606]
[1748964978579,0.04735982,162.21,162.18,0.04326837]
[1748964979486,6.20765982,162.21,162.18,6.20426837]
[1748964979682,6.20765982,162.21,162.18,0.04326837]
[1748964980090,0.04735982,162.21,162.19,6.1609]
[1748964980789,15.95840464,162.21,162.18,0.04326837]
[1748964980984,20.91625703,162.21,162.18,0.04326837]
[1748964981180,15.95840464,162.21,162.18,0.04326837]
[1748964981594,20.91625703,162.21,162.18,0.04326837]
[1748964981885,22.11870464,162.21,162.18,0.04326837]
[1748964982089,22.11870464,162.21,162.18,6.20456837]
[1748964982389,15.95840464,162.21,162.18,0.04326837]
[1748964982586,0.04735982,162.21,162.18,0.04326837]
[1748964982785,6.1609,162.19,162.18,0.04326837]
[1748964982986,40.96,162.19,162.11,40.96]
[1748964983285,40.96,162.19,162.15,6.1622]
[1748964983286,22.07254482,162.18,162.15,6.1622]
[1748964983685,15.91104482,162.18,162.11,40.96]
[1748964983888,6.2019564,162.16,162.13,0.04112339]
[1748964984286,0.0398564,162.16,162.13,0.04112339]
[1748964984487,0.0398564,162.16,162.14,6.1626]
[1748964984688,0.0398564,162.16,162.13,0.04112339]
[1748964985091,6.2021564,162.16,162.13,6.20422339]
[1748964985493,0.0398564,162.16,162.13,0.04112339]
[1748964986191,6.2019564,162.16,162.13,6.20402339]
[1748964986393,0.0398564,162.16,162.13,0.04112339]
[1748964986693,15.95090122,162.16,162.13,0.04112339]
[1748964986894,6.1627,162.15,162.13,0.04112339]
[1748964987594,22.11310122,162.16,162.13,6.20422339]
[1748964987788,5.00482077,162.15,162.13,6.20422339]
[1748964987989,0.0398564,162.16,162.13,0.04112339]
[1748964988488,6.2019564,162.16,162.14,6.1628]
[1748964988892,5.04467717,162.16,162.13,0.04112339]
[1748964989089,2.92197104,162.15,162.13,0.04112339]
[1748964989393,5.04467717,162.16,162.13,0.04112339]
[1748964989604,0.0398564,162.16,162.13,0.04112339]
[1748964989790,5.04467717,162.16,162.14,6.1626]
[1748964990098,5.04467717,162.16,162.13,0.04112339]
[1748964990297,0.0398564,162.16,162.13,0.04112339]
[1748964990501,2.67370462,162.15,162.13,0.04112339]
[1748964990705,0.0398564,162.16,162.13,0.04112339]
[1748964991005,5.04467717,162.16,162.15,6.1625]
[1748964991201,7.71838593,162.16,162.15,6.1625]
[1748964991498,2.70555287,162.16,162.15,6.1625]
[1748964991699,5.06154167,162.16,162.14,6.1627]
[1748964991894,5.02168527,162.15,162.14,6.1627]
[1748964992088,7.69528436,162.15,162.14,6.1627]
[1748964992292,5.02168527,162.15,162.14,6.1627]
[1748964993397,0.0398564,162.16,162.15,6.1625]
[1748964993598,5.0657044,162.16,162.15,6.1625]
[1748964994100,5.0657044,162.16,162.14,6.1627]
[1748964994301,5.025848,162.15,162.14,6.1627]
[1748964994689,7.69947647,162.15,162.14,6.1627]
[1748964995095,5.025848,162.15,162.14,6.1627]
[1748964995295,7.69946307,162.15,162.14,6.1627]
[1748964995492,0.0398564,162.16,162.15,6.1624]
[1748964995696,5.06639759,162.16,162.15,6.1624]
[1748964996097,7.74002561,162.16,162.15,6.1624]
[1748964996299,5.06639759,162.16,162.15,6.1624]
[1748964996500,7.74002561,162.16,162.15,6.1624]
[1748964997002,7.74002561,162.16,162.13,0.04112339]
[1748964997003,5.06639759,162.16,162.13,0.04112339]
[1748964997202,7.70027639,162.15,162.13,0.04112339]
[1748964997402,5.02654119,162.14,162.13,0.04112339]
[1748964997597,5.02654119,162.14,162.13,6.20432339]
[1748964999104,7.70032373,162.14,162.13,6.20432339]
[1748964999401,7.72467408,162.14,162.13,6.20432339]
[1748964999801,5.05089154,162.14,162.13,6.20432339]
[1748965000903,7.72470494,162.14,162.13,6.20432339]
[1748965001102,5.05089154,162.14,162.13,6.20432339]
[1748965001297,7.72447748,162.14,162.13,6.20432339]
[1748965001502,2.67356105,162.14,162.13,6.20432339]
[1748965001704,5.05065752,162.14,162.13,6.20432339]
[1748965001900,7.73488929,162.14,162.13,6.20432339]
[1748965002100,5.05065752,162.14,162.13,6.20432339]
[1748965002302,7.73488619,162.14,162.13,6.20432339]
[1748965002498,0.0398564,162.16,162.15,6.1625]
[1748965002799,15.29660377,162.22,162.15,9.54197546]
[1748965003197,6.1606,162.2,162.14,2.1263]
[1748965003806,0.042918,162.19,162.17,6.1616]
[1748965004007,0.042918,162.19,162.15,0.0463742]
[1748965004302,6.204118,162.19,162.15,0.0463742]
[1748965004509,0.042918,162.19,162.15,0.0463742]
[1748965004913,15.74609346,162.19,162.16,6.1619]
[1748965005408,6.1614,162.18,162.16,6.1619]
[1748965005708,6.1614,162.18,162.15,0.0463742]
[1748965006211,15.74599346,162.19,162.15,0.0463742]
[1748965006910,15.74599346,162.19,162.16,6.1618]
[1748965007401,9.54197546,162.17,162.15,0.0463742]
[1748965008003,6.1621,162.16,162.15,0.0463742]
[1748965009209,15.29818838,162.17,162.09,39.48]
[1748965009423,9.54197546,162.14,162.12,6.1636]
[1748965010408,15.70477546,162.14,162.12,6.1636]
[1748965011216,6.20707414,162.15,162.12,6.1636]
[1748965011616,9.54197546,162.14,162.11,0.04472001]
[1748965012009,9.54197546,162.14,162.11,6.20842001]
[1748965012208,9.54197546,162.14,162.11,0.04472001]
[1748965012611,6.20707414,162.15,162.12,6.1636]
[1748965012816,15.7490496,162.15,162.12,6.1636]
[1748965013016,9.54197546,162.13,162.11,0.04472001]
[1748965014525,5.04383838,162.12,162.11,0.04472001]
[1748965014715,7.63157757,162.12,162.11,0.04472001]
[1748965014921,5.04383838,162.12,162.11,0.04472001]
[1748965015221,11.20792485,162.12,162.11,0.04472001]
[1748965015422,13.79581166,162.12,162.11,0.04472001]
[1748965015623,5.04432485,162.12,162.11,0.04472001]
[1748965016021,7.63226043,162.12,162.11,0.04472001]
[1748965016426,7.63222763,162.12,162.11,0.04472001]
[1748965016619,5.04432485,162.12,162.11,0.04472001]
[1748965016923,7.63160981,162.12,162.11,6.20872001]
[1748965017234,7.63160388,162.12,162.11,6.20872001]
[1748965017533,5.04432485,162.12,162.11,6.20872001]
[1748965017724,7.63157041,162.12,162.11,6.20872001]
[1748965017925,7.62373798,162.12,162.11,6.20872001]
[1748965018229,5.04432485,162.12,162.11,6.20872001]
[1748965018423,7.62374114,162.12,162.11,6.20872001]
[1748965018729,5.04432485,162.12,162.11,6.20872001]
[1748965018929,0.04447414,162.15,162.14,6.1628]
[1748965019117,7.67771239,162.15,162.14,6.1628]
[1748965019324,7.67771239,162.15,162.11,0.04472001]
[1748965019523,5.0540523,162.14,162.13,6.163]
[1748965019721,7.63317356,162.14,162.13,6.163]
[1748965019934,7.65251537,162.14,162.13,6.163]
[1748965020224,5.0540523,162.14,162.13,6.163]
[1748965020729,5.0540523,162.14,162.12,6.1634]
[1748965021028,5.0540523,162.13,162.11,0.04472001]
[1748965021219,9.54197546,162.14,162.11,0.04472001]
[1748965021220,5.0540523,162.12,162.11,6.20862001]
[1748965021625,5.05239185,162.12,162.11,0.04472001]
[1748965021831,5.05239185,162.12,162.11,6.20872001]
[1748965022436,7.65105644,162.12,162.11,0.04472001]
[1748965022725,7.65122433,162.12,162.11,0.04472001]
[1748965023126,5.05239185,162.12,162.11,0.04472001]
[1748965023323,6.1643,162.11,162.05,39.48]
[1748965023525,7.65926474,162.1,162.05,39.48]
[1748965023837,38.02,162.13,162.05,49.02197546]
[1748965024034,5.03512985,162.12,162.05,49.02197546]
[1748965024332,0.04685963,162.1,162.07,0.04304844]
[1748965024527,5.21326664,162.09,162.07,0.04304844]
[1748965024725,3.332e-05,162.09,162.07,9.5850239]
[1748965024927,3.332e-05,162.09,162.08,6.1651]
[1748965025130,3.332e-05,162.09,162.08,8.2894]
[1748965025322,15.29513919,162.16,162.08,2.1243]
[1748965025527,5.039952,162.15,162.13,0.04689295]
[1748965025730,5.039952,162.14,162.13,9.54197546]
[1748965025923,43.77316373,162.21,162.13,9.54197546]
[1748965026124,5.04725717,162.2,162.15,9.54197546]
[1748965026329,38.02,162.21,162.16,0.04269147]
[1748965026330,5.09252552,162.19,162.16,0.04269147]
[1748965026523,5.04725717,162.18,162.17,6.1617]
[1748965028426,5.04725717,162.18,162.16,0.04269147]
[1748965028627,0.04526835,162.19,162.16,0.04269147]
[1748965028823,5.04582432,162.18,162.17,6.1617]
[1748965029035,5.04587306,162.18,162.16,0.04269147]
[1748965029236,0.04526835,162.19,162.16,0.04269147]
[1748965030037,0.04526835,162.19,162.16,2.22119147]
[1748965030237,0.04526835,162.19,162.18,6.1613]
[1748965030430,43.77123503,162.25,162.17,18.07096054]
[1748965030633,38.02,162.25,162.17,20.21256054]
[1748965030837,15.89916054,162.24,162.17,4.3134]
[1748965031034,15.89916054,162.24,162.16,2.1785]
[1748965031234,6.1594,162.23,162.16,2.1785]
[1748965031430,0.04538214,162.21,162.18,0.04715225]
[1748965032436,0.04538214,162.21,162.2,6.1605]
[1748965033040,0.04538214,162.21,162.18,0.04715225]
[1748965033832,15.89916054,162.2,162.18,0.04715225]
[1748965034036,53.89916054,162.2,162.12,38.02]
[1748965034338,15.89916054,162.18,162.12,38.02]
[1748965035144,0.04212176,162.17,162.13,0.04665753]
[1748965035347,0.04212176,162.17,162.16,6.1621]
[1748965041046,38.0,162.23,162.14,15.89916054]
[1748965041249,38.0,162.23,162.16,15.89916054]
[1748965041750,38.0,162.23,162.21,6.1598]
[1748965042248,59.64461412,162.23,162.2,0.04385482]
[1748965042448,15.89916054,162.21,162.2,0.01188935]
[1748965042650,5.03360838,162.21,162.2,6.17238935]
[1748965043840,5.03360838,162.22,162.21,6.1602]
[1748965045755,38.04277623,162.23,162.22,6.1598]
[1748965045951,43.10270011,162.23,162.22,6.1598]
[1748965048746,43.09792175,162.23,162.22,6.1598]
[1748965050856,38.04277623,162.23,162.22,6.1598]
[1748965051155,43.09792175,162.23,162.22,6.1598]
[1748965051348,0.04277623,162.23,162.22,6.1598]
[1748965052653,5.09792175,162.23,162.22,6.1598]
[1748965052853,0.04277623,162.23,162.22,6.1598]
[1748965053156,0.04277623,162.23,162.2,0.01188935]
[1748965053545,5.09792175,162.23,162.2,0.01188935]
[1748965053752,0.04277623,162.23,162.22,6.1598]
[1748965054047,5.09792175,162.23,162.22,6.1598]
[1748965054251,0.04277623,162.23,162.22,6.1598]
[1748965054449,5.09792175,162.23,162.22,6.1598]
[1748965054652,0.04277623,162.23,162.22,6.1598]
[1748965054850,5.09792175,162.23,162.22,6.1598]
[1748965055060,0.04277623,162.23,162.22,6.1598]
[1748965055256,5.09792175,162.23,162.22,6.1598]
[1748965055453,0.04277623,162.23,162.22,6.1598]
[1748965055654,5.09792175,162.23,162.21,6.1601]
[1748965055958,9.57732778,162.23,162.2,0.01188935]
[1748965056250,20.7920733,162.23,162.21,6.1602]
[1748965056454,9.57732778,162.23,162.2,0.01188935]
[1748965057051,5.10125725,162.23,162.2,0.01188935]
[1748965057250,0.04277623,162.23,162.2,0.01188935]
[1748965057458,5.10125725,162.23,162.2,0.01188935]
[1748965057755,0.04277623,162.23,162.2,0.01188935]
[1748965057957,5.10125725,162.23,162.2,0.01188935]
[1748965058168,0.04277623,162.23,162.22,6.1598]
[1748965058462,5.10125725,162.23,162.22,6.1598]
[1748965058655,0.04277623,162.23,162.22,6.1598]
[1748965059454,51.2958088,162.23,162.2,0.01188935]
[1748965059766,9.53455155,162.21,162.14,2.005]
[1748965060058,9.53455155,162.19,162.16,6.1619]
[1748965060257,14.59303257,162.19,162.16,6.1619]
[1748965060455,5.0528396,162.18,162.16,6.1619]
[1748965060855,5.0528396,162.17,162.16,6.1619]
[1748965061055,5.0528396,162.18,162.15,6.20176289]
[1748965061257,5.0528396,162.17,162.15,6.20176289]
[1748965061567,9.57477889,162.19,162.15,0.03956289]
[1748965061861,11.22070127,162.18,162.15,6.20186289]
[1748965062054,5.05920127,162.17,162.15,6.20186289]
[1748965062257,15.69645155,162.17,162.15,0.03956289]
[1748965062457,5.06063949,162.16,162.15,0.03956289]
[1748965063063,5.06063949,162.16,162.15,6.20176289]
[1748965064461,5.06063949,162.16,162.15,0.03956289]
[1748965065653,11.22273949,162.16,162.15,0.03956289]
[1748965065857,14.59519104,162.16,162.05,9.53455155]
[1748965066057,9.53455155,162.12,162.1,6.164]
[1748965066464,9.53455155,162.12,162.11,6.164]
[1748965066662,14.59801511,162.12,162.11,6.164]
[1748965066861,14.59801511,162.12,162.1,0.04399253]
[1748965067063,5.0624585,162.11,162.1,0.04399253]
[1748965067655,47.9064585,162.11,162.1,0.04399253]
[1748965067965,47.9064585,162.11,162.01,36.68]
[1748965067966,41.7424585,162.11,162.01,36.68]
[1748965068173,6.1655,162.07,162.04,6.1663]
[1748965068365,9.53455155,162.05,161.98,6.2669]
[1748965068763,9.57949245,162.03,162.0,0.04494134]
[1748965069162,14.65649562,162.03,162.0,0.04494134]
[1748965069366,0.0449409,162.03,162.01,6.1678]
[1748965069565,9.53455155,162.02,162.01,6.1678]
[1748965070257,14.61155472,162.02,162.0,6.21304134]
[1748965070461,9.53455155,162.02,162.0,0.04494134]
[1748965070663,14.582262,162.02,162.0,0.04494134]
[1748965071069,20.749862,162.02,162.0,0.04494134]
[1748965071271,9.53455155,162.02,162.0,0.04494134]
[1748965071463,14.59816173,162.02,162.0,0.04494134]
[1748965071773,9.53455155,162.02,162.0,0.04494134]
[1748965072867,15.70205155,162.02,162.0,0.04494134]
[1748965073068,20.75530796,162.02,162.0,0.04494134]
[1748965073363,14.58780796,162.02,161.94,2.55397415]
[1748965073673,9.53455155,161.98,161.94,2.55397415]
[1748965074174,9.53455155,161.98,161.97,6.1693]
[1748965074368,9.53455155,161.98,161.96,0.04434059]
[1748965074875,0.03939571,161.99,161.96,0.04434059]
[1748965075372,0.03939571,161.99,161.98,6.1689]
[1748965076667,2.0134,162.07,161.98,6.1689]
[1748965076668,46.23455155,162.08,162.07,6.1655]
[1748965079278,36.7,162.08,162.07,6.1655]
[1748965085680,36.7,162.08,162.06,6.20861369]
[1748965085976,42.8651,162.08,162.06,0.04291369]
[1748965086479,36.7,162.08,162.06,0.04291369]
[1748965086780,36.7,162.08,162.07,6.1655]
[1748965087281,36.7,162.08,162.06,0.04291369]
[1748965087475,36.7,162.08,162.06,6.20861369]
[1748965087676,36.7,162.08,162.06,0.04291369]
[1748965087877,36.7,162.08,162.07,6.1655]
[1748965088680,36.7,162.08,162.06,0.04291369]
[1748965088879,15.92376534,162.07,162.06,0.04291369]
[1748965089283,22.08926534,162.07,162.06,0.04291369]
[1748965090674,36.7,162.08,162.06,0.04291369]
[1748965091184,36.7,162.08,162.06,6.20861369]
[1748965091381,36.7,162.08,162.06,0.04291369]
[1748965091783,6.1655,162.07,162.06,0.04291369]
[1748965092484,52.62376534,162.08,161.98,36.7]
[1748965092677,15.92376534,162.05,161.98,36.7]
[1748965092878,6.1669,162.04,161.97,2.1073]
[1748965093085,36.02,162.04,161.97,2.1073]
[1748965093386,0.04028094,162.02,161.99,0.04488299]
[1748965093587,0.04028094,162.02,162.01,6.1678]
[1748965098187,0.04028094,162.02,161.99,0.04488299]
[1748965098690,0.04028094,162.02,162.0,6.1679]
[1748965099593,9.56241739,162.01,161.99,0.04488299]
[1748965100596,15.73041739,162.01,161.99,0.04488299]
[1748965100798,9.56241739,162.01,161.99,0.04488299]
[1748965100998,9.56241739,162.01,161.99,6.21318299]